bitfinex/quotes_ETHUSD_20240817
["timestamp","ask_amount","ask_price","bid_price","bid_amount"]
[1723935076438,19.95,2614.1,2614.0,2.86916]
[1723935076658,21.266,2614.3,2614.0,2.86916]
[1723935076843,22.89332893,2614.3,2614.0,2.86916]
[1723935082497,19.95,2614.2,2614.0,2.86916]
[1723935083981,19.95,2614.2,2613.9,2.86926]
[1723935084203,1.37537522,2614.1,2613.9,2.86926]
[1723935084584,2.69137522,2614.1,2613.9,2.86926]
[1723935085586,2.4386,2614.0,2613.7,2.86949]
[1723935085769,1.316,2613.9,2613.6,2.86952]
[1723935086251,1.316,2613.9,2613.7,2.86947]
[1723935087999,4.02760073,2614.0,2613.7,2.86947]
[1723935088202,19.95,2613.9,2613.7,2.86947]
[1723935095034,19.95,2613.9,2613.6,2.86952]
[1723935095035,21.266,2613.9,2613.6,2.86952]
[1723935095232,21.266,2613.9,2613.6,5.73907]
[1723935095233,22.86914837,2613.9,2613.6,5.73907]
[1723935095998,22.86914837,2613.9,2613.7,2.86948]
[1723935096196,25.13594755,2613.9,2613.6,2.86952]
[1723935096405,25.13594755,2613.9,2613.6,5.73906]
[1723935096598,25.13594755,2613.9,2613.7,2.86949]
[1723935098151,23.53279918,2613.9,2613.7,2.86949]
[1723935098349,25.13594755,2613.9,2613.7,2.86949]
[1723935099547,23.53279918,2613.9,2613.7,2.86949]
[1723935099754,2.51359476,2613.8,2613.7,2.86949]
[1723935099911,2.51359476,2613.8,2613.5,2.86969]
[1723935100115,22.46359476,2613.8,2613.5,2.86969]
[1723935100313,24.06674313,2613.8,2613.5,2.86969]
[1723935103944,24.06674313,2613.8,2613.4,2.86981]
[1723935104116,3.49580669,2613.7,2613.4,2.86981]
[1723935105015,5.09895506,2613.7,2613.4,2.86981]
[1723935105656,8.71625506,2613.7,2613.4,2.86981]
[1723935106157,6.41495506,2613.7,2613.4,2.86981]
[1723935108967,3.90444837,2613.6,2613.3,2.86984]
[1723935109175,6.57202763,2613.6,2613.3,2.86984]
[1723935109686,6.57202763,2613.6,2613.3,5.7397]
[1723935109884,4.96887926,2613.6,2613.4,2.86982]
[1723935110271,6.57202763,2613.6,2613.4,2.86982]
[1723935110472,2.66757926,2613.6,2613.4,2.86982]
[1723935110690,2.91914837,2613.7,2613.4,2.86982]
[1723935114196,1.60314837,2613.7,2613.4,2.86982]
[1723935116621,21.55314837,2613.8,2613.4,2.86982]
[1723935116814,21.55314837,2613.8,2613.3,2.86984]
[1723935117000,19.95,2613.8,2613.7,5.33679]
[1723935118188,19.95,2613.8,2613.7,8.20628]
[1723935120334,19.95,2613.8,2613.7,2.86949]
[1723935120528,21.945,2613.8,2613.7,2.86949]
[1723935120915,19.95,2613.8,2613.7,2.86949]
[1723935122206,19.95,2613.8,2613.6,2.86959]
[1723935125620,21.55314837,2613.8,2613.6,2.86959]
[1723935127036,21.55314837,2613.9,2613.6,2.86959]
[1723935127339,21.55314837,2613.9,2613.8,2.86938]
[1723935127511,19.95,2613.9,2613.8,2.86938]
[1723935131651,19.95,2613.9,2613.8,5.73876]
[1723935132948,19.95,2614.0,2613.9,2.86927]
[1723935133574,21.55314837,2614.0,2613.9,2.86927]
[1723935133887,19.95,2614.0,2613.9,2.86927]
[1723935138417,19.95,2614.0,2613.8,2.86938]
[1723935138593,21.55314837,2614.0,2613.8,2.86938]
[1723935138943,19.95,2613.9,2613.8,5.73869]
[1723935143139,19.95,2613.9,2613.8,2.86931]
[1723935144809,19.95,2614.0,2613.9,2.86927]
[1723935146291,19.95,2614.0,2613.9,8.12854]
[1723935150779,19.95,2614.2,2614.1,2.86905]
[1723935152187,1.60314837,2614.5,2614.4,5.73744]
[1723935152336,22.86914837,2614.6,2614.5,2.86861]
[1723935152542,26.03134571,2614.6,2614.5,2.86861]
[1723935152865,26.03134894,2614.6,2614.5,2.86861]
[1723935157667,24.43075769,2614.6,2614.5,2.86861]
[1723935160365,26.03134894,2614.6,2614.5,2.86861]
[1723935160664,24.43075769,2614.6,2614.5,2.86861]
[1723935160869,26.03134894,2614.6,2614.5,2.86861]
[1723935161072,24.43075769,2614.6,2614.5,2.86861]
[1723935161286,21.266,2614.6,2614.5,2.86861]
[1723935181380,21.266,2614.6,2614.3,2.86882]
[1723935181381,22.86659125,2614.6,2614.3,2.86882]
[1723935181959,1.60059125,2614.5,2614.3,2.86882]
[1723935183579,21.55059125,2614.5,2614.3,2.86882]
[1723935188575,1.60059125,2614.4,2614.3,2.86882]
[1723935189241,19.95,2614.5,2614.3,2.86882]
[1723935189242,21.55059125,2614.5,2614.3,2.86882]
[1723935189640,1.60059125,2614.4,2614.3,2.86882]
[1723935199282,21.95509256,2614.5,2614.3,2.86882]
[1723935199964,1.60412388,2614.4,2614.3,2.86882]
[1723935203810,1.60406235,2614.4,2614.3,2.86882]
[1723935203996,21.95500865,2614.5,2614.3,2.86882]
[1723935204197,1.60405658,2614.4,2614.3,2.86882]
[1723935210575,21.95503678,2614.5,2614.3,2.86882]
[1723935210775,1.60421802,2614.4,2614.3,2.86882]
[1723935211078,21.95503678,2614.5,2614.3,2.86882]
[1723935211272,19.95,2614.5,2614.3,2.86882]
[1723935211481,21.95526309,2614.5,2614.3,2.86882]
[1723935211675,21.95526309,2614.5,2614.4,2.86872]
[1723935212119,24.75766097,2614.5,2614.2,2.86893]
[1723935212316,1.60418885,2614.3,2614.0,5.7382]
[1723935212617,1.96513276,2614.2,2614.0,5.73819]
[1723935212819,1.60418757,2614.1,2614.0,5.7382]
[1723935213034,1.60418757,2614.2,2614.0,5.7382]
[1723935213720,1.60418757,2614.2,2614.1,2.86905]
[1723935215679,1.96513264,2614.2,2613.8,5.73861]
[1723935215985,1.60418757,2614.0,2613.9,2.86927]
[1723935216184,2.23732714,2614.0,2613.9,2.86927]
[1723935216496,1.60418757,2614.0,2613.9,2.86927]
[1723935217004,1.60418757,2614.1,2613.9,2.86927]
[1723935217335,1.60418757,2614.1,2613.8,2.86929]
[1723935217486,2.23732714,2614.0,2613.8,2.86929]
[1723935218286,2.23732714,2614.0,2613.8,5.73861]
[1723935220129,0.63313957,2614.0,2613.8,5.73861]
[1723935220329,0.63313957,2614.0,2613.8,2.86929]
[1723935221388,2.23732714,2614.0,2613.8,2.86929]
[1723935221583,4.59832714,2614.0,2613.8,2.86929]
[1723935223000,0.63313957,2614.0,2613.8,2.86929]
[1723935223206,1.60418757,2614.1,2613.8,5.73861]
[1723935224807,1.60418757,2614.0,2613.8,5.73861]
[1723935225007,1.60418757,2614.1,2613.8,5.73861]
[1723935225222,1.60418757,2614.1,2613.8,2.86929]
[1723935225567,1.60418757,2614.0,2613.8,5.73862]
[1723935225768,2.65549183,2614.1,2613.8,5.73862]
[1723935226126,2.65549183,2614.1,2613.8,2.86929]
[1723935226767,2.65549183,2614.1,2613.8,5.73862]
[1723935226978,2.65549183,2614.1,2613.8,2.86929]
[1723935230472,2.65549183,2614.1,2613.8,5.73861]
[1723935230684,2.65549183,2614.1,2613.8,2.86929]
[1723935230972,2.65549183,2614.1,2613.8,5.73862]
[1723935231329,2.65549183,2614.1,2613.8,2.86929]
[1723935232069,1.05130426,2614.1,2613.8,2.86929]
[1723935233026,2.65549183,2614.1,2613.8,2.86929]
[1723935235058,1.05130426,2614.1,2613.8,2.86929]
[1723935235438,1.05130426,2614.1,2613.8,5.73862]
[1723935237783,1.05130426,2614.1,2613.8,2.86929]
[1723935238194,2.65549183,2614.1,2613.8,2.86929]
[1723935238392,1.05130426,2614.1,2613.8,5.73861]
[1723935238563,1.05130426,2614.1,2613.8,2.86929]
[1723935239293,1.05130426,2614.1,2613.8,5.73862]
[1723935240101,1.96513264,2614.2,2613.9,2.86925]
[1723935240308,1.60418757,2614.2,2613.9,2.86925]
[1723935242924,19.95,2614.1,2613.9,2.86925]
[1723935243823,19.95,2614.1,2614.0,8.13092]
[1723935248118,19.95,2614.1,2614.0,9.44692]
[1723935248946,19.95,2614.5,2614.4,2.86872]
[1723935249101,21.55418757,2614.5,2614.4,2.86872]
[1723935249737,2.8689,2614.3,2613.4,2.365]
[1723935249938,1.60117913,2613.9,2613.5,2.86965]
[1723935250151,1.60117913,2613.7,2613.4,5.23481]
[1723935250453,21.55117913,2613.7,2613.4,2.86981]
[1723935251030,21.55117913,2613.7,2613.3,2.86985]
[1723935251031,19.95,2613.6,2613.3,2.86985]
[1723935251242,19.95,2613.6,2613.2,2.365]
[1723935251550,19.95,2613.6,2613.1,2.87008]
[1723935251551,24.42078913,2613.6,2613.1,2.87008]
[1723935251898,21.55117913,2613.6,2613.2,2.87003]
[1723935252256,19.95,2613.6,2613.2,2.87003]
[1723935257350,19.95,2613.6,2613.3,2.86992]
[1723935266552,19.95,2613.6,2613.5,2.86971]
[1723935266887,21.55117913,2613.8,2613.5,2.86971]
[1723935268265,19.95,2613.8,2613.5,2.86971]
[1723935268478,21.05489994,2613.8,2613.5,2.86971]
[1723935268988,22.65607907,2613.8,2613.5,2.86971]
[1723935269394,21.05489994,2613.8,2613.5,2.86971]
[1723935269768,22.65607907,2613.8,2613.5,2.86971]
[1723935270258,21.05489994,2613.8,2613.5,2.86971]
[1723935270877,22.65607907,2613.8,2613.5,2.86971]
[1723935271193,21.05489994,2613.8,2613.5,2.86971]
[1723935271370,22.65607907,2613.8,2613.5,2.86971]
[1723935271687,22.65607907,2613.8,2613.4,2.86982]
[1723935271896,21.55117913,2613.8,2613.4,2.86982]
[1723935272398,19.95,2613.8,2613.4,2.86982]
[1723935272754,21.55117913,2613.8,2613.4,2.86982]
[1723935273068,19.95,2613.8,2613.4,2.86982]
[1723935274678,21.55117913,2613.8,2613.4,2.86982]
[1723935275401,19.95,2613.8,2613.4,2.86982]
[1723935275556,21.55117913,2613.8,2613.4,2.86982]
[1723935276582,5.31816,2613.6,2613.1,2.87015]
[1723935278616,19.95,2613.5,2613.1,2.87015]
[1723935279189,19.95,2613.5,2613.2,2.87003]
[1723935280182,22.81972,2613.5,2613.0,5.21138]
[1723935280373,19.95,2613.5,2613.1,3.0]
[1723935280899,19.95,2613.5,2613.1,5.87009]
[1723935281913,22.81973,2613.5,2613.1,5.87009]
[1723935282889,19.95,2613.5,2613.1,5.87009]
[1723935283090,19.95,2613.5,2613.1,5.87008]
[1723935285490,19.95,2613.5,2613.1,8.74018]
[1723935286792,19.95,2613.5,2613.2,2.87003]
[1723935291718,19.95,2613.5,2613.1,5.87008]
[1723935291921,23.05298193,2613.5,2613.1,5.87008]
[1723935292103,23.05298193,2613.5,2613.1,8.74017]
[1723935292987,23.05298193,2613.5,2613.2,2.87004]
[1723935294106,24.65416106,2613.5,2613.2,2.87004]
[1723935295084,1.60117913,2613.4,2613.2,2.87004]
[1723935296492,21.55117913,2613.4,2613.2,2.87004]
[1723935297530,1.60117913,2613.3,2613.2,2.87004]
[1723935299005,21.55117913,2613.4,2613.2,2.87004]
[1723935299521,1.60117913,2613.3,2613.2,2.87004]
[1723935300118,19.95,2613.4,2613.2,2.87004]
[1723935300119,21.55117913,2613.4,2613.2,2.87004]
[1723935300625,1.60117913,2613.3,2613.2,2.87004]
[1723935301047,21.55117913,2613.4,2613.2,2.87004]
[1723935302730,1.60117913,2613.3,2613.2,2.87004]
[1723935303030,21.55117913,2613.4,2613.2,2.87004]
[1723935303443,1.60117913,2613.3,2613.2,2.87004]
[1723935303637,21.55117913,2613.4,2613.2,2.87004]
[1723935305234,1.60117913,2613.3,2613.2,2.87004]
[1723935305433,21.55117913,2613.4,2613.2,2.87004]
[1723935306360,1.60117913,2613.3,2613.2,2.87004]
[1723935307529,1.60117913,2613.3,2613.2,5.74008]
[1723935307765,21.55117913,2613.4,2613.3,2.86993]
[1723935308263,19.95,2613.4,2613.3,2.86993]
[1723935314251,1.60117913,2613.5,2613.3,2.86993]
[1723935314252,1.60117913,2613.5,2613.4,2.86982]
[1723935317106,1.60117913,2613.5,2613.3,2.86993]
[1723935317640,1.60117913,2613.5,2613.3,5.73981]
[1723935318540,1.60117913,2613.4,2613.3,2.86988]
[1723935322587,1.60117913,2613.5,2613.3,2.86988]
[1723935322787,1.60117913,2613.4,2613.3,5.33998]
[1723935323033,1.60117913,2613.5,2613.4,2.86982]
[1723935323956,2.00547237,2613.6,2613.4,2.86982]
[1723935324095,1.60510066,2613.5,2613.4,2.86982]
[1723935324438,2.00547237,2613.6,2613.4,2.86977]
[1723935324646,1.60526187,2613.6,2613.5,2.86971]
[1723935325215,2.00547237,2613.7,2613.5,2.86971]
[1723935325412,1.60507574,2613.6,2613.5,2.86971]
[1723935326961,1.60507574,2613.6,2613.5,8.07112]
[1723935327258,2.40656685,2614.0,2613.8,2.86938]
[1723935327259,1.60507574,2613.9,2613.8,2.86938]
[1723935327558,1.60507574,2614.0,2613.9,2.86927]
[1723935328155,1.60507574,2614.1,2613.9,2.86927]
[1723935331134,4.40867237,2614.3,2613.9,2.86927]
[1723935331135,1.60507574,2614.2,2613.9,2.86927]
[1723935332192,19.95,2614.1,2613.9,2.86927]
[1723935333335,19.95,2614.1,2614.0,2.86916]
[1723935333775,19.95,2614.1,2614.0,5.20086]
[1723935333941,19.95,2614.1,2614.0,8.07002]
[1723935336540,19.95,2614.3,2614.1,2.86899]
[1723935338588,19.95,2614.3,2614.1,2.86905]
[1723935339264,22.23710757,2614.3,2614.1,2.86905]
[1723935339459,19.95,2614.3,2614.1,2.86905]
[1723935341187,19.95,2614.2,2614.1,2.86905]
[1723935347085,19.95,2614.3,2614.1,2.86905]
[1723935347416,19.95,2614.3,2614.2,2.86894]
[1723935347783,19.95,2614.3,2614.1,5.25755]
[1723935349320,19.95,2614.3,2614.2,2.86894]
[1723935369141,21.55507574,2614.4,2614.3,2.86883]
[1723935369812,19.95,2614.4,2614.3,2.86883]
[1723935371152,21.55507574,2614.4,2614.3,2.86883]
[1723935371659,21.55507574,2614.4,2614.3,5.73766]
[1723935371810,19.95,2614.4,2614.3,5.73766]
[1723935372211,21.55507574,2614.4,2614.3,5.73766]
[1723935373964,1.60507574,2614.4,2614.3,5.73766]
[1723935392247,21.95915372,2614.5,2614.4,2.86872]
[1723935392460,19.95,2614.5,2614.4,2.86872]
[1723935392617,21.266,2614.5,2614.4,2.86872]
[1723935395695,2.4971,2614.4,2614.2,2.86893]
[1723935395901,2.4971,2614.4,2613.9,5.73839]
[1723935395902,1.316,2614.3,2613.9,5.73839]
[1723935396083,1.60723521,2614.1,2613.9,2.86918]
[1723935397097,1.60723521,2614.1,2614.0,2.86916]
[1723935398265,2.00904402,2614.2,2614.0,2.86916]
[1723935398504,1.60651761,2614.1,2614.0,2.86916]
[1723935406663,1.60651761,2614.2,2614.1,2.86905]
[1723935417713,1.60651761,2614.3,2614.1,2.86905]
[1723935418436,1.60651761,2614.3,2614.2,5.73788]
[1723935430240,1.60651761,2614.4,2614.3,2.86883]
[1723935435578,3.32497533,2614.5,2614.3,2.86883]
[1723935435579,1.316,2614.5,2614.3,2.86883]
[1723935435748,5.38678014,2614.5,2614.3,2.86883]
[1723935437366,1.60711181,2614.4,2614.3,2.86883]
[1723935438072,5.38678014,2614.5,2614.3,2.86883]
[1723935438761,1.60717296,2614.4,2614.3,2.86883]
[1723935439250,19.95,2614.4,2614.3,2.86883]
[1723935439657,21.55736635,2614.4,2614.3,2.86883]
[1723935440056,19.95,2614.4,2614.3,2.86883]
[1723935440255,21.55736533,2614.4,2614.3,2.86883]
[1723935440752,19.95,2614.4,2614.3,2.86883]
[1723935444356,21.55734416,2614.4,2614.3,2.86883]
[1723935444570,21.55734416,2614.4,2614.3,5.73766]
[1723935444773,1.60734416,2614.6,2614.5,5.73722]
[1723935445083,23.56636429,2614.9,2614.8,2.86828]
[1723935445300,3.01092604,2615.2,2614.9,5.73634]
[1723935445301,1.60734416,2615.0,2614.9,5.73634]
[1723935446386,19.95,2615.1,2615.0,2.86806]
[1723935446387,21.55734416,2615.1,2615.0,2.86806]
[1723935448249,2.3996,2615.0,2614.6,2.86849]
[1723935448593,2.3996,2615.0,2614.5,2.86861]
[1723935448594,1.60502888,2614.9,2614.5,2.86855]
[1723935448743,1.60502888,2614.9,2614.7,2.86839]
[1723935448744,4.35045454,2614.9,2614.7,2.86839]
[1723935448947,1.60502888,2614.8,2614.7,2.86839]
[1723935449192,4.35045454,2614.9,2614.7,2.86839]
[1723935449483,1.60502888,2614.8,2614.7,2.86839]
[1723935449859,1.60502888,2614.8,2614.6,2.8685]
[1723935450068,1.60507927,2614.8,2614.6,5.737]
[1723935450449,1.60507927,2614.8,2614.6,2.8685]
[1723935450644,1.60507927,2614.8,2614.4,2.86864]
[1723935450645,3.9283086,2614.8,2614.4,2.86864]
[1723935450852,1.60507927,2614.7,2614.4,2.86864]
[1723935451163,21.55507927,2614.7,2614.4,2.86864]
[1723935451573,21.55507927,2614.7,2614.5,2.8686]
[1723935451860,24.41807154,2614.7,2614.4,2.86864]
[1723935452261,24.41807154,2614.7,2614.4,5.73726]
[1723935452650,24.41807154,2614.7,2614.5,2.86859]
[1723935453662,1.60507927,2614.6,2614.5,2.86859]
[1723935453977,24.41807154,2614.7,2614.5,2.86859]
[1723935454162,1.60507927,2614.6,2614.5,2.86859]
[1723935454375,2.01013624,2614.6,2614.5,2.86859]
[1723935454694,0.40505697,2614.6,2614.5,2.86859]
[1723935456014,24.41807154,2614.7,2614.5,2.86859]
[1723935456311,1.60507927,2614.6,2614.5,2.86859]
[1723935456817,21.55507927,2614.7,2614.5,2.86859]
[1723935457171,21.55507927,2614.6,2614.5,2.86859]
[1723935457372,19.95,2614.6,2614.5,2.86859]
[1723935457847,21.55507927,2614.6,2614.4,2.86872]
[1723935458029,24.1435631,2614.6,2614.3,2.86879]
[1723935458193,24.1435631,2614.6,2614.3,5.73757]
[1723935458857,24.1435631,2614.6,2614.3,2.86878]
[1723935460027,24.1435631,2614.6,2614.3,5.73755]
[1723935460564,2.615043,2614.5,2613.9,8.27999]
[1723935460708,22.565043,2614.5,2614.1,2.86905]
[1723935461051,22.565043,2614.5,2614.1,5.73805]
[1723935461216,22.565043,2614.5,2614.1,5.73799]
[1723935461417,24.17012227,2614.5,2614.1,2.86899]
[1723935461752,24.17012227,2614.5,2614.1,5.73799]
[1723935462054,24.17012227,2614.5,2614.1,5.73798]
[1723935462419,24.17012227,2614.5,2614.2,2.86894]
[1723935463370,21.55507927,2614.5,2614.2,2.86894]
[1723935465159,1.60507927,2614.4,2614.2,2.86894]
[1723935465991,21.55507927,2614.4,2614.2,2.86894]
[1723935466801,19.95,2614.4,2614.2,2.86894]
[1723935467793,21.55507927,2614.4,2614.2,2.86894]
[1723935470235,19.95,2614.4,2614.2,2.86894]
[1723935470840,21.55507927,2614.4,2614.2,2.86894]
[1723935472000,1.60507927,2614.4,2614.2,2.86894]
[1723935473346,21.55507927,2614.5,2614.2,2.86894]
[1723935473540,1.60507927,2614.4,2614.2,2.86894]
[1723935478030,21.55507927,2614.4,2614.2,2.86894]
[1723935480629,2.4537,2614.3,2613.9,5.86926]
[1723935480831,4.05877927,2614.3,2614.0,2.86915]
[1723935485348,6.25534656,2614.3,2614.0,2.86915]
[1723935485650,1.60507927,2614.3,2614.2,5.73788]
[1723935485961,19.95,2614.4,2614.3,5.73766]
[1723935488653,19.95,2614.4,2614.3,2.86883]
[1723935489961,22.87107927,2614.6,2614.3,2.86883]
[1723935490107,24.62131245,2614.6,2614.3,2.86883]
[1723935492810,24.62131245,2614.6,2614.4,2.86871]
[1723935492963,22.87107927,2614.6,2614.4,2.86871]
[1723935493357,1.60507927,2614.5,2614.4,2.86871]
[1723935493994,22.87107927,2614.6,2614.4,2.86871]
[1723935494958,23.27304249,2614.6,2614.5,2.86861]
[1723935498615,23.27509005,2614.6,2614.5,2.86861]
[1723935499108,23.27509005,2614.6,2614.4,2.86871]
[1723935499411,1.60726181,2614.5,2614.4,2.86871]
[1723935500795,6.56411563,2614.5,2614.1,2.86905]
[1723935501107,6.56411563,2614.5,2614.2,2.86892]
[1723935501108,1.60736246,2614.4,2614.2,2.86892]
[1723935504683,21.55736246,2614.4,2614.2,2.86892]
[1723935505814,24.32080762,2614.4,2614.2,2.86892]
[1723935506019,1.60736246,2614.3,2614.2,2.86892]
[1723935506331,1.60643063,2614.3,2614.0,2.8691]
[1723935506688,1.60643063,2614.2,2614.0,2.8691]
[1723935507700,1.60643063,2614.3,2614.0,2.8691]
[1723935507967,1.60643063,2614.2,2614.0,2.8691]
[1723935509894,1.60643063,2614.3,2614.0,2.8691]
[1723935510066,1.60643063,2614.2,2614.0,2.8691]
[1723935510267,4.72861683,2614.3,2614.0,2.8691]
[1723935510470,1.60643063,2614.2,2614.0,2.8691]
[1723935512105,2.92243063,2614.2,2613.7,5.24541]
[1723935512312,2.38635438,2614.1,2613.7,2.86941]
[1723935512475,1.60643063,2614.0,2613.8,2.86937]
[1723935512826,1.60643063,2613.9,2613.8,2.86937]
[1723935513403,1.60643063,2614.0,2613.8,2.86937]
[1723935513976,1.60643063,2613.9,2613.8,2.86937]
[1723935514313,1.60643063,2614.0,2613.8,2.86937]
[1723935514775,2.69953024,2614.1,2613.8,2.86937]
[1723935515130,1.60643063,2614.0,2613.8,2.86937]
[1723935515433,2.69953024,2614.1,2613.8,2.86937]
[1723935518428,2.3313,2613.9,2613.6,2.86955]
[1723935518730,3.93773063,2613.9,2613.6,2.86955]
[1723935520329,2.3313,2613.9,2613.6,2.86955]
[1723935524304,2.3313,2613.9,2613.6,5.73909]
[1723935524645,1.60643063,2614.1,2613.8,2.4377]
[1723935525348,2.92243063,2614.0,2613.7,2.86944]
[1723935525497,1.316,2614.0,2613.7,2.86944]
[1723935526117,4.70073801,2614.1,2613.7,2.86944]
[1723935526441,0.95726821,2614.0,2613.7,2.86944]
[1723935533235,6.79031063,2614.1,2613.7,2.86944]
[1723935533236,4.47551063,2614.1,2613.7,2.86944]
[1723935533968,2.86908,2614.1,2613.7,2.86944]
[1723935534366,4.47551063,2614.1,2613.7,2.86944]
[1723935535069,4.47551063,2614.1,2613.8,2.4623]
[1723935535579,5.77329112,2614.1,2613.8,2.4623]
[1723935537671,5.77329112,2614.1,2613.7,2.86944]
[1723935539069,1.60643063,2614.0,2613.6,5.33189]
[1723935539271,2.51562517,2614.0,2613.6,5.33189]
[1723935539458,1.60643063,2614.0,2613.6,5.33189]
[1723935539843,5.77329112,2614.1,2613.6,5.33189]
[1723935540154,5.77329112,2614.1,2613.7,2.86946]
[1723935540478,4.47551063,2614.1,2613.7,2.86946]
[1723935544277,1.60643063,2613.9,2613.5,2.86966]
[1723935545779,1.60643063,2613.9,2613.5,2.86965]
[1723935546488,1.60643063,2613.9,2613.5,5.7393]
[1723935546679,1.60643063,2613.9,2613.5,2.86965]
[1723935547086,4.47581063,2613.8,2613.3,5.86985]
[1723935547338,5.79181063,2613.8,2613.3,5.86985]
[1723935547692,5.79181063,2613.8,2613.3,2.86985]
[1723935547897,1.60643063,2613.7,2613.3,2.86985]
[1723935549919,5.35661354,2613.7,2613.2,5.26953]
[1723935550131,7.81211354,2613.7,2613.2,5.26953]
[1723935551789,1.60643063,2613.6,2613.2,2.87003]
[1723935552009,3.00653848,2613.6,2613.2,2.87003]
[1723935553250,3.00653848,2613.6,2613.0,2.3995]
[1723935553251,1.316,2613.4,2613.0,2.3995]
[1723935553577,1.316,2613.2,2612.8,2.3995]
[1723935553791,2.4555,2613.1,2612.7,2.8705]
[1723935555831,1.316,2613.0,2612.5,2.896658]
[1723935556028,6.74872233,2613.0,2612.5,5.767408]
[1723935556430,6.74872233,2613.0,2612.6,2.87068]
[1723935556431,1.316,2613.0,2612.6,2.87068]
[1723935557762,6.93209063,2613.1,2612.7,2.87059]
[1723935557940,5.32566,2613.1,2612.7,2.87059]
[1723935563285,3.91693063,2613.4,2612.7,2.87054]
[1723935563497,6.49632,2613.4,2612.9,2.8703]
[1723935563651,6.49632,2613.4,2612.9,5.3358]
[1723935564889,1.316,2613.4,2613.0,2.8702]
[1723935567693,2.4132,2613.3,2613.0,2.8702]
[1723935568195,1.316,2613.4,2613.0,2.8702]
[1723935569199,1.60643063,2613.6,2612.8,1.316]
[1723935569364,5.28277,2613.7,2613.2,2.87004]
[1723935569562,2.29185806,2613.6,2613.2,2.87004]
[1723935574959,2.29185806,2613.6,2613.2,8.01152]
[1723935575190,1.316,2613.6,2613.2,5.14148]
[1723935575658,1.316,2613.6,2613.2,2.86998]
[1723935577075,1.316,2613.6,2613.2,5.73996]
[1723935577661,1.316,2613.6,2613.3,5.14137]
[1723935578721,1.316,2613.6,2613.4,2.8698]
[1723935583000,2.92243063,2613.8,2613.4,5.73957]
[1723935583630,2.92243063,2613.8,2613.4,2.86977]
[1723935584648,1.316,2613.8,2613.5,2.8697]
[1723935585156,2.92243063,2613.8,2613.5,2.8697]
[1723935585578,1.316,2613.8,2613.5,2.8697]
[1723935586368,2.92243063,2613.8,2613.5,2.8697]
[1723935586525,1.316,2613.8,2613.5,2.8697]
[1723935586960,1.316,2613.8,2613.6,2.8696]
[1723935588977,1.60643063,2613.9,2613.6,2.86955]
[1723935589288,2.92243063,2614.1,2613.7,5.73886]
[1723935589577,2.92243063,2614.1,2613.8,2.86932]
[1723935592262,1.316,2614.1,2613.8,2.86932]
[1723935592629,1.60643063,2614.2,2613.9,2.86927]
[1723935592833,1.316,2614.2,2613.9,2.86927]
[1723935593636,2.92243063,2614.2,2613.9,2.86927]
[1723935593983,1.316,2614.2,2613.9,2.86927]
[1723935594673,2.92243063,2614.2,2613.9,2.86927]
[1723935594854,1.316,2614.2,2613.9,2.86927]
[1723935595272,1.60643063,2614.3,2614.0,2.8691]
[1723935595481,1.60643063,2614.3,2613.9,2.86922]
[1723935595482,1.316,2614.3,2613.9,2.86922]
[1723935595769,1.316,2614.3,2613.9,5.73844]
[1723935595966,5.37403063,2614.3,2613.9,5.73844]
[1723935596176,3.7676,2614.3,2613.9,5.73844]
[1723935596344,5.37403063,2614.3,2613.9,2.86922]
[1723935596545,3.7676,2614.3,2613.9,2.86922]
[1723935596872,3.7676,2614.3,2614.0,2.86915]
[1723935600457,3.7676,2614.3,2613.8,2.2551]
[1723935600458,1.60643063,2614.6,2614.3,2.86883]
[1723935600632,1.316,2614.7,2614.4,2.86867]
[1723935601572,1.316,2614.7,2614.5,2.86856]
[1723935603585,1.60824306,2614.7,2614.5,2.86856]
[1723935603767,2.4516,2614.6,2614.5,2.86856]
[1723935604281,2.4516,2614.6,2614.4,5.73744]
[1723935604487,2.4516,2614.6,2614.4,2.86866]
[1723935605743,2.4516,2614.6,2614.4,5.73733]
[1723935605958,1.316,2614.7,2614.5,2.86861]
[1723935607044,2.4873,2615.0,2614.6,2.8685]
[1723935607244,1.316,2614.9,2614.5,2.8686]
[1723935607465,2.01216906,2614.9,2614.5,2.8686]
[1723935607690,1.316,2614.7,2614.4,5.7373]
[1723935607995,1.316,2614.7,2614.4,2.86865]
[1723935608222,1.316,2614.7,2614.4,5.73732]
[1723935610490,1.316,2614.7,2614.5,2.86859]
[1723935611795,19.95,2614.6,2614.5,2.86859]
[1723935616555,19.95,2614.6,2614.4,5.73732]
[1723935617074,19.95,2614.6,2614.5,2.86861]
[1723935623737,19.95,2614.8,2614.5,2.86861]
[1723935625271,19.95,2614.8,2614.6,2.8685]
[1723935625567,1.316,2614.7,2614.6,2.8685]
[1723935627878,1.316,2614.7,2614.5,2.86861]
[1723935628438,1.316,2614.7,2614.6,2.8685]
[1723935629582,21.266,2614.7,2614.6,2.8685]
[1723935630453,22.73920699,2614.7,2614.5,2.86861]
[1723935630750,25.19010699,2614.7,2614.5,2.86861]
[1723935631558,26.79653762,2614.7,2614.5,2.86861]
[1723935632050,2.67965376,2614.6,2614.5,2.86861]
[1723935635314,26.79653762,2614.7,2614.5,2.86861]
[1723935635519,19.95,2614.6,2614.5,2.86861]
[1723935635950,21.55643063,2614.6,2614.5,2.86861]
[1723935640519,19.95,2614.6,2614.5,2.86861]
[1723935641023,21.55549037,2614.6,2614.5,2.86861]
[1723935641668,19.95,2614.6,2614.5,2.86861]
[1723935642064,21.55568562,2614.6,2614.5,2.86861]
[1723935642523,19.95,2614.6,2614.5,2.86861]
[1723935643274,21.55581974,2614.6,2614.5,2.86861]
[1723935643496,19.95,2614.6,2614.5,2.86861]
[1723935643665,21.95677424,2614.6,2614.5,2.86861]